Workbook

Sheet Instruction

Sheet APOD
F1: Annual Property Operating Data
C2: Property Name | D2: Scenario 2 | J2: =TODAY() -> 2004-10-21 | N2: Property Acquisition Cost | S2: Percent
C3: Description | D3: Investment Property | J3: Purchase Price | N3: 275000 | T3: =SUM(purchase_price/N6) -> 1
C4: Location | J4: Acquisition & Closing Costs | N4: 0 | T4: =SUM(Fnc_Acquisition_Costs/N6) -> 0
C5: Property Type | J5: Loan Points | N5: =IF(CashFlows!I5,CashFlows!I5,) -> 0 | T5: =SUM(Loan_Points/N6) -> 0
C6: Property Size | D6: 1974 | F6: Square Feet | J6: Adjusted Basis(C.R. Taxes) | N6: =SUM(N3:R5) -> 275000 | T6: =SUM(N6/N6) -> 1
D7: Mortgage Information | J7: Mortgages | N7: =Fnc_Amount_Mtg_1+Fnc_Amount_Mtg_2 -> 220000 | T7: =SUM(Total_Beginning_Mortgages/N6) -> 0.8
D8: Balance | F8: Payment | H8: Interest | J8: Investment Amount | N8: =+purchase_price+Fnc_Acquisition_Costs+Loan_Points-Total_Beginning_Mortgages -> 55000 | T8: =SUM(N8)/N6 -> 0.2
C9: First Mortgage | D9: =Fnc_Amount_Mtg_1 -> 220000 | F9: =Per_Pmt_Mtg_1 -> 1783.023936 | H9: =Rate_Mtg_1 -> 0.05375
C10: Second Mortgage | D10: =Fnc_Amount_Mtg_2 -> 0 | F10: =Per_Pmt_Mtg_2 -> 0 | H10: =Rate_Mtg_2 -> 0 | J10: Adjusted Basis (C.R. Property) | N10: =+purchase_price + Fnc_Acquisition_Costs -> 275000 | T10: =IF(fnc_improvements_value>0,SUM(fnc_improvements_value/N15)," ") -> 1
D11: Acquisition Breakout | N11: Value at Acquisition | S11: Percent
D12: Breakout | F12: Property | H12: Percent | J12: Personal Property | N12: 0 | T12: =IF(fnc_value_personal>0,SUM(fnc_value_personal/N15)," ") -> 
D13: Value | F13: Acquistion | H13: Of Acq | J13: Land | N13: 0 | T13: =IF(fnc_land_value>0,SUM(fnc_land_value/N15)," ") -> 
C14: Land | D14: =fnc_land_value -> 0 | F14: =N15 -> 275000 | H14: =IF(fnc_land_value>0,SUM(fnc_land_value/N15)," ") ->  | J14: Improvements | N14: =SUM(fnc_adjusted_basis) -> 275000 | T14: =IF(fnc_improvements_value>0,SUM(fnc_improvements_value/N15)," ") -> 1
C15: Personal Property | D15: =fnc_value_personal -> 0 | F15: =N15 -> 275000 | H15: =IF(fnc_value_personal>0,SUM(fnc_value_personal/N15)," ") ->  | J15: Acquisition Total | N15: =SUM(N12:N14) -> 275000 | T15: =SUM(T12:T14) -> 1
C17: Operational Catagories | F17: Monthly | H17: Operating | J17: Annual Figures
F18: Figures | H18: Percent | N18: Income Before Taxes
C19: ESTIMATED RENTAL INCOME | F19: 1650 | L19: =F19*12 -> 19800
C20: Other Income | F20: 0 | H20: =IF(F20>0,F20/GOI," ") ->  | L20: =F20*12 -> 0
C21: Vacancy Losses | F21: =SUM(PRI_APOD+Other_Inc_with_vac) * H21 -> 1643.4 | H21: =+fnc_Vac_Yr_1 -> 0.083 | L21: =F21 -> 1643.4
C22: EFFECTIVE RENTAL INCOME | L22: =+PRI_APOD+Other_Inc_with_vac-L21 -> 18156.6
C23: Business Income | F23: 0 | H23: =IF(F23>0,F23/GOI," ") ->  | L23: =F23*12 -> 0
C24: GROSS OPERATING INCOME | L24: =+Fnc_ERI_APOD+OTHER_APOD -> 18156.6
C25: PROPERTY OPERATING EXPENSES
C26: Real Estate Taxes | F26: 172 | H26: =IF(F26>0,J26/GOI," ") -> 0.1136776709 | J26: =IF(F26>0,F26*12," ") -> 2064
C27: Personal Property Taxes | F27: 0 | H27: =IF(F27>0,J27/GOI," ") ->  | J27: =IF(F27>0,F27*12," ") -> 
C28: Property Management | F28: 0 | H28: =IF(F28>0,J28/GOI," ") ->  | J28: =IF(F28>0,F28*12," ") -> 
C29: HOA Dues | F29: 193 | H29: =IF(F29>0,J29/GOI," ") -> 0.1275569215 | J29: =IF(F29>0,F29*12," ") -> 2316
C30: Association Expenses | F30: 0 | H30: =IF(F30>0,J30/GOI," ") ->  | J30: =IF(F30>0,F30*12," ") -> 
C31: Property Insurance | F31: 40 | H31: =IF(F31>0,J31/GOI," ") -> 0.02643666766 | J31: =IF(F31>0,F31*12," ") -> 480
C32: Worker's Compensation & Taxes | F32: 0
C33: Repairs and Maintenance | F33: 60 | H33: 0.03965500149 | J33: 720
C34: Utilities | F34: 0
C35: Accounting and Legal | F35: 0
C36: Payroll | F36: 0
C37: Licenses & Permits | F37: 0
C38: Advertising | F38: 0 | N38: Description
C39: Supplies | F39: 0
C40: Miscellaneous Services | F40: 0
C41: Electrical | F41: 0
C42: Plumbing | F42: 0
C43: Supplies | F43: 0
C44: Misc 1 | F44: 12.5 | H44: 0.008261458643 | J44: 150
C45: Misc 2 | F45: 27 | H45: 0.01784475067 | J45: 324
C46: Misc 3 | F46: 0
C47: Misc 4 | F47: 0
C48: Misc 5 | F48: 0
C51: TOTAL OPERATING EXPENSES | F51: =SUM(F26:F48) -> 504.5 | H51: =SUM(H26:H48) -> 0.3334324708 | J51: =SUM(J26:J48) -> 6054 | L51: =SUM(J26:J48) -> 6054
C52: NET OPERATING INCOME | L52: =L24-L51 -> 12102.6
C53: Annual Debt Service | F53: =Fnc_ADS_Mtg_1+Fnc_ADS_Mtg_2 -> 21396.28723 | L53: =Fnc_ADS_Mtg_1+Fnc_ADS_Mtg_2 -> 21396.28723
C54: Funded Reserves | F54: =SUM(fnc_reserves_imp+fnc_reserves_pers) -> 0 | L54: =SUM(fnc_reserves_imp+fnc_reserves_pers) -> 0
C55: Leasing Commissions | F55: 0 | H55: =IF(F55>0,J55/GOI," ") ->  | J55: =IF(F55>0,F55*12," ") ->  | L55: =SUM(J55) -> 0
C56: Capital Additions | F56: 0 | H56: =IF(F56>0,J56/GOI," ") ->  | J56: =IF(F56>0,F56*12," ") ->  | L56: =SUM(J56) -> 0
C57: CASH FLOW BEFORE TAXES | L57: =+L52-L53-L54-L55-L56 -> -9293.687231
C60: Note:
H62: ="Real Estate Investment Software CopyR"&CHAR(169)&" 1997 - 2002 " -> Real Estate Investment Software CopyR© 1997 - 2002
J66: GOI | L66: =GOI -> 18156.6
J67: NOI | L67: =NOI_APOD -> 12102.6
J68: EXP | L68: =OP_EXP_APOD -> 6054
J69: Cash Flow | L69: =L57 -> -9293.687231

Sheet Mortgage
F1: Mortgage Information
B3: Acquisition Information | I3: Mortgage Information
J4: First | L4: Second
D5: Acquisition Items | J5: Mortgage | L5: Mortgage
B6: Purchase Price | D6: =IF(+purchase_price,purchase_price,) -> 275000 | F6: =SUM(D6/D6) -> 1 | I6: Amount | J6: 220000 | L6: 0
B7: Acquisition & Closing Costs | D7: =IF(Fnc_Acquisition_Costs,Fnc_Acquisition_Costs,) -> 0 | F7: =SUM(D7/D6) -> 0 | I7: Interest Rate | J7: 0.05375 | L7: 0
B8: Loan Points | D8: =+Points_Mtg_1+Points_Mtg_2 -> 0 | F8: =SUM(D8/D6) -> 0 | I8: Amortization Period | J8: 15 | L8: 0
B9: Mortgages | D9: =+Fnc_Amount_Mtg_1+Fnc_Amount_Mtg_2 -> 220000 | F9: =SUM(D9/D6) -> 0.8 | I9: Loan Term | J9: =IF(Fnc_Amort_Period_Mtg_1,Fnc_Amort_Period_Mtg_1,) -> 15 | L9: =IF(Fnc_Amort_Period_Mtg_2,Fnc_Amort_Period_Mtg_2,) -> 0
B10: Initial Investment | D10: =+D6+D7+D8-D9 -> 55000 | F10: =SUM(D10/D6) -> 0.2 | I10: Yearly Payments | J10: 12 | L10: 12
B11: Total Adjusted Basis | D11: =SUM(D9:D10) -> 275000 | F11: 1 | I11: Payment Amount | J11: =IF(J6<1,0,+J6/((1-((1+(J7/J10))^(-(J8*J10))))/(J7/J10))) -> 1783.023936 | L11: =IF(L6<1,0,+L6/((1-((1+(L7/L10))^(-(L8*L10))))/(L7/L10))) -> 0
I12: Annual Debt Service | J12: =J10*J11 -> 21396.28723 | L12: =L10*L11 -> 0
I13: Closing & Loan Cost | J13: 0 | L13: 0
E15: Mortgage Balance
E16: Balance | G16: Payment | I16: Interest
D17: First Mortgage | E17: =Fnc_Amount_Mtg_1 -> 220000 | G17: =Per_Pmt_Mtg_1 -> 1783.023936 | I17: =Rate_Mtg_1 -> 0.05375
D18: Second Mortgage | E18: =Fnc_Amount_Mtg_2 -> 0 | G18: =Per_Pmt_Mtg_2 -> 0 | I18: =Rate_Mtg_2 -> 0
D19: Total Mortgage | E19: =SUM(E17:F18) -> 220000 | G19: =SUM(G17:H18) -> 1783.023936 | I19: =SUM(I17:I18) -> 0.05375
I21: Cost Recovery Information
J22: Improvements | L22: Personal Property
I24: Adjusted Value | J24: =SUM(fnc_land_value+fnc_improvements_value) -> 275000 | L24: =fnc_value_personal -> 0
I25: Cost Recovery | J25: SL | L25: SL
I26: Useful Life | J26: 30 | L26: 30
I27: In Service Date | J27: =TODAY() -> 2004-10-21 | L27: =TODAY() -> 2004-10-21
I28: Date of Sale | J28: =+In_Service_date+(365*5) -> 2009-10-20 | L28: =+In_Service_date+(365*5) -> 2009-10-20
I29: Reserves | J29: 0 | L29: 0
I30: Tax Credit | J30: 0 | L30: 0
I31: Investment %
A33: ="Real Estate Investment Software CopyR@1997 - 2002 " -> Real Estate Investment Software CopyR@1997 - 2002

Sheet CashFlows
E1: Cash Flow Analysis
B3: Property Name | C3: scenario3 | G3: Purchase Price | I3: =IF(+purchase_price,purchase_price,) -> 275000 | K3: =SUM(I3/I3) -> 1
B4: Description | G4: Ascuisition Costs | I4: =IF(Fnc_Acquisition_Costs,Fnc_Acquisition_Costs,) -> 0 | K4: =SUM(I4/I3) -> 0
G5: Loan Points | I5: =+Points_Mtg_1+Points_Mtg_2 -> 0 | K5: =SUM(I5/I3) -> 0
B6: Forecast Date | C6: =TODAY() -> 2004-10-21 | G6: Mortgages | I6: =+Fnc_Amount_Mtg_1+Fnc_Amount_Mtg_2 -> 220000 | K6: =SUM(I6/I3) -> 0.8
G7: Initial Investment | I7: =+I3+I4+I5-I6 -> 55000 | K7: =SUM(I7/I3) -> 0.2
E9: Mortgage Information
E10: Balance | G10: Payment | I10: Interest
C11: First Mortgage | E11: =Fnc_Amount_Mtg_1 -> 220000 | G11: =Per_Pmt_Mtg_1 -> 1783.023936 | I11: =Rate_Mtg_1 -> 0.05375
C12: Second Mortgage | E12: =Fnc_Amount_Mtg_2 -> 0 | G12: =Per_Pmt_Mtg_2 -> 0 | I12: =Rate_Mtg_2 -> 0
C13: Total Mortgage | E13: =SUM(E11:F12) -> 220000 | G13: =SUM(G11:H12) -> 1783.023936 | I13: =SUM(I11:I12) -> 0.05375
G17: Income Before Taxes
C18: Calendar Year | E18: =YEAR(In_Service_date) -> 2004 | G18: =+E18+1 -> 2005 | I18: =+G18+1 -> 2006 | K18: =+I18+1 -> 2007 | M18: =+K18+1 -> 2008
B20: ESTIMATED RENTAL INCOME | E20: =PRI_APOD*((13-Month_Placed_in_Svc)/12) -> 19800 | G20: =PRI_APOD*(1+Fnc_IncEscal_2) -> 20889 | I20: =+G20*(1+Fnc_IncEscal_3) -> 22037.895 | K20: =+I20*(1+Fnc_IncEscal_4) -> 23249.97922 | M20: =+K20*(1+Fnc_IncEscal_5) -> 24528.72808
B21: +Other Income (vacancy applies) | E21: =Other_Inc_with_vac*((13-Month_Placed_in_Svc)/12) -> 0 | G21: =Other_Inc_with_vac*(1+Variables!F15) -> 0 | I21: =G21*(1+Variables!H15) -> 0 | K21: =I21*(1+Variables!J15) -> 0 | M21: =K21*(1+Variables!L15) -> 0
B22: -Vacancy & Credit Losses | E22: =fnc_Vac_Yr_1*(E20+E21) -> 1643.4 | G22: =fnc_Vac_Yr_2*(G20+G21) -> 1733.787 | I22: =fnc_Vac_Yr_3*(I20+I21) -> 1829.145285 | K22: =fnc_Vac_Yr_4*(K20+K21) -> 1929.748276 | M22: =fnc_Vac_Yr_5*(M20+M21) -> 2035.884431
B23: =Estimated Rental Income | E23: =+E20+E21-E22 -> 18156.6 | G23: =+G20+G21-G22 -> 19155.213 | I23: =+I20+I21-I22 -> 20208.74972 | K23: =+K20+K21-K22 -> 21320.23095 | M23: =+M20+M21-M22 -> 22492.84365
B24: +Business Income | E24: =OTHER_APOD*((13-Month_Placed_in_Svc)/12) -> 0 | G24: =OTHER_APOD*(1+Variables!F16) -> 0 | I24: =G24*(1+Variables!H16) -> 0 | K24: =I24*(1+Variables!J16) -> 0 | M24: =K24*(1+Variables!L16) -> 0
B25: =Gross Operating Income | E25: =+E23+E24 -> 18156.6 | G25: =+G23+G24 -> 19155.213 | I25: =+I23+I24 -> 20208.74972 | K25: =+K23+K24 -> 21320.23095 | M25: =+M23+M24 -> 22492.84365
B26: -Operating Expenses | E26: =OP_EXP_APOD*((13-Month_Placed_in_Svc)/12) -> 6054 | G26: =OP_EXP_APOD*(1+Fnc_ExpEscal_2) -> 6311.295 | I26: =+G26*(1+Fnc_ExpEscal_3) -> 6579.525037 | K26: =+I26*(1+Fnc_ExpEscal_4) -> 6859.154852 | M26: =+K26*(1+Fnc_ExpEscal_5) -> 7150.668933
B27: =NET OPERATING INCOME | E27: =+E25-E26 -> 12102.6 | G27: =+G25-G26 -> 12843.918 | I27: =+I25-I26 -> 13629.22468 | K27: =+K25-K26 -> 14461.0761 | M27: =+M25-M26 -> 15342.17472
B28: -First Mortgage Interest | E28: =Variables!F59*Mortgage!J11-(Mortgage!J6-Sales!C5) -> 11585.6511 | G28: =(Mortgage!$J$10*Mortgage!$J$11-(Sales!C5-Sales!E5))*(Fnc_Bal_EOY2_Mtg_1>0) -> 11045.14269 | I28: =(Mortgage!$J$10*Mortgage!$J$11-(Sales!E5-Sales!G5))*(Fnc_Bal_EOY3_Mtg_1>0) -> 10474.85544 | K28: =(Mortgage!$J$10*Mortgage!$J$11-(Sales!G5-Sales!I5))*(Fnc_Bal_EOY4_Mtg_1>0) -> 9873.148717 | M28: =(Mortgage!$J$10*Mortgage!$J$11-(Sales!I5-Sales!K5))*(Fnc_Bal_EOY5_Mtg_1>0) -> 9238.291487
B29: -Second Mortgage Interest | E29: =Variables!H59*Mortgage!L11-(Mortgage!L6-Sales!C6) -> 0 | G29: =(Mortgage!$L$10*Mortgage!$L$11-(Sales!C6-Sales!E6))*(Sales!E7>0) -> 0 | I29: =(Mortgage!$L$10*Mortgage!$L$11-(Sales!E6-Sales!G6))*(Sales!G7>0) -> 0 | K29: =(Mortgage!$L$10*Mortgage!$L$11-(Sales!G6-Sales!I6))*(Sales!I7>0) -> 0 | M29: =(Mortgage!$L$10*Mortgage!$L$11-(Sales!I6-Sales!K6))*(Sales!K7>0) -> 0
B30: -Improvements Cost Recovery | E30: =ROUND(Value_Improvements_Real*ROUND(1/Useful_Life_Real*((12.5-Month_Placed_in_Svc)/12),5),0) -> 8784 | G30: =ROUND(Value_Improvements_Real*ROUND(1/Useful_Life_Real,5),0) -> 9166 | I30: =+G30 -> 9166 | K30: =+I30 -> 9166 | M30: =ROUND(Value_Improvements_Real*ROUND(1/Useful_Life_Real,5),0) -> 9166
B31: -Personal Property Cost Recovery | E31: =ROUND(Value_Personal*ROUND(1/Useful_Life_Real*((12.5-Month_Placed_in_Svc)/12),5),0) -> 0 | G31: =ROUND(Value_Personal*ROUND(1/Useful_Life_Real,5),0) -> 0 | I31: =+G31 -> 0 | K31: =+I31 -> 0 | M31: =ROUND(Value_Personal*ROUND(1/Useful_Life_Real,5),0) -> 0
B32: -Loan Point Amortization | E32: =IF(fnc_Loan_Term_Mtg_1,Points_Mtg_1/fnc_Loan_Term_Mtg_1,)+IF(fnc_Loan_Term_Mtg_2,Points_Mtg_2/fnc_Loan_Term_Mtg_2,) -> 0 | G32: =IF(fnc_Loan_Term_Mtg_1,Points_Mtg_1/fnc_Loan_Term_Mtg_1,)*(fnc_Loan_Term_Mtg_1>1)+IF(fnc_Loan_Term_Mtg_2,Points_Mtg_2/fnc_Loan_Term_Mtg_2,)*(fnc_Loan_Term_Mtg_2>1) -> 0 | I32: =IF(fnc_Loan_Term_Mtg_1,Points_Mtg_1/fnc_Loan_Term_Mtg_1,)*(fnc_Loan_Term_Mtg_1>2)+IF(fnc_Loan_Term_Mtg_2,Points_Mtg_2/fnc_Loan_Term_Mtg_2,)*(fnc_Loan_Term_Mtg_2>2) -> 0 | K32: =IF(fnc_Loan_Term_Mtg_1,Points_Mtg_1/fnc_Loan_Term_Mtg_1,)*(fnc_Loan_Term_Mtg_1>3)+IF(fnc_Loan_Term_Mtg_2,Points_Mtg_2/fnc_Loan_Term_Mtg_2,)*(fnc_Loan_Term_Mtg_2>3) -> 0 | M32: =IF(fnc_Loan_Term_Mtg_1,Points_Mtg_1/fnc_Loan_Term_Mtg_1,)*(fnc_Loan_Term_Mtg_1>4)+IF(fnc_Loan_Term_Mtg_2,Points_Mtg_2/fnc_Loan_Term_Mtg_2,)*(fnc_Loan_Term_Mtg_2>4) -> 0
B33: -Commissions for Leasing | E33: =+Leasing_Commissions -> 0 | G33: =E33*(1+Fnc_IncEscal_2) -> 0 | I33: =G33*(1+Fnc_IncEscal_3) -> 0 | K33: =I33*(1+Fnc_IncEscal_4) -> 0 | M33: =K33*(1+Fnc_IncEscal_5) -> 0
B34: =REAL ESTATE TAXABLE INCOME | E34: =+E27-E28-E29-E30-E31-E32-E33 -> -8267.0511 | G34: =+G27-G28-G29-G30-G31-G32-G33 -> -7367.22469 | I34: =+I27-I28-I29-I30-I31-I32-I33 -> -6011.630764 | K34: =+K27-K28-K29-K30-K31-K32-K33 -> -4578.07262 | M34: =+M27-M28-M29-M30-M31-M32-M33 -> -3062.116769
B35: ="Tax Liability (Credit) "&(Ordinary_Income_Tax_Bracket) -> Tax Liability (Credit) 0.25 | E35: =+E34*Ordinary_Income_Tax_Bracket -> -2066.762775 | G35: =+G34*Ordinary_Income_Tax_Bracket -> -1841.806172 | I35: =+I34*Ordinary_Income_Tax_Bracket -> -1502.907691 | K35: =+K34*Ordinary_Income_Tax_Bracket -> -1144.518155 | M35: =+M34*Ordinary_Income_Tax_Bracket -> -765.5291921
G37: Operating Cash Flow
B39: NET OPERATING INCOME | E39: =+E27 -> 12102.6 | G39: =+G27 -> 12843.918 | I39: =+I27 -> 13629.22468 | K39: =+K27 -> 14461.0761 | M39: =+M27 -> 15342.17472
B40: -Annual Debt Service | E40: =+E28+E29+(Mortgage!J6+Mortgage!L6-Sales!C7) -> 21396.28723 | G40: =+G28+G29+(Sales!C7-Sales!E7) -> 21396.28723 | I40: =+I28+I29+(Sales!E7-Sales!G7) -> 21396.28723 | K40: =+K28+K29+(Sales!G7-Sales!I7) -> 21396.28723 | M40: =+M28+M29+(Sales!I7-Sales!K7) -> 21396.28723
B41: -Replacement Reserves | E41: =+Mortgage!J29+Mortgage!L29 -> 0 | G41: =+Mortgage!J29+Mortgage!L29 -> 0 | I41: =+Mortgage!J29+Mortgage!L29 -> 0 | K41: =+Mortgage!J29+Mortgage!L29 -> 0 | M41: =+Mortgage!J29+Mortgage!L29 -> 0
E42: 0
B43: =CASH FLOW BEFORE TAXES | E43: =+E39-E40-E41-E42 -> -9293.687231 | G43: =+G39-G40-G41-G42 -> -8552.369231 | I43: =+I39-I40-I41-I42 -> -7767.062553 | K43: =+K39-K40-K41-K42 -> -6935.211133 | M43: =+M39-M40-M41-M42 -> -6054.112512
B44: -Tax Liability (Credit) | E44: =+E35 -> -2066.762775 | G44: =+G35 -> -1841.806172 | I44: =+I35 -> -1502.907691 | K44: =+K35 -> -1144.518155 | M44: =+M35 -> -765.5291921
B45: +Investment Tax Credit | E45: =+Mortgage!J30+Mortgage!L30 -> 0 | G45: =+Mortgage!J30+Mortgage!L30 -> 0 | I45: =+Mortgage!J30+Mortgage!L30 -> 0 | K45: =+Mortgage!J30+Mortgage!L30 -> 0 | M45: =+Mortgage!J30+Mortgage!L30 -> 0
B46: =CASH FLOW AFTER TAXES | E46: =+E43-E44+E45 -> -7226.924456 | G46: =+G43-G44+G45 -> -6710.563058 | I46: =+I43-I44+I45 -> -6264.154862 | K46: =+K43-K44+K45 -> -5790.692978 | M46: =+M43-M44+M45 -> -5288.58332
B48: Real Estate Investment Software CopyR@1997 - 2002
C50: =+M18+1 -> 2009
C52: =+M20*(1+Fnc_IncEscal_6) -> 25877.80813
C53: =M21*(1+Variables!T15) -> 0
C54: =Vac_Yr_6*(C52+C53) -> 2147.858075
C55: =+C52+C53-C54 -> 23729.95005
C56: =M24*(1+Variables!T16) -> 0
C57: =+C55+C56 -> 23729.95005
C58: =+M26*(1+Fnc_ExpEscal_6) -> 7454.572362
C59: =+C57-C58 -> 16275.37769
C68: Year 1 | E68: =Fnc_CFAT_1 -> -7226.924456 | K68: NOI | M68: =E39 -> 12102.6
C69: Year 2 | E69: =Fnc_CFAT_2 -> -6710.563058 | K69: MORT | M69: =E40 -> 21396.28723
C70: Year 3 | E70: =Fnc_CFAT_3 -> -6264.154862 | K70: RESR | M70: =E41 -> 0
C71: Year 4 | E71: =Fnc_CFAT_4 -> -5790.692978 | K71: CFBT | M71: =E43 -> -9293.687231
C72: Year 5 | E72: =Fnc_CFAT_5 -> -5288.58332 | K72: TAXES | M72: =E44 -> -2066.762775
K73: CREDIT | M73: =E45 -> 0
K74: CFAT | M74: =E46 -> -7226.924456

Sheet Sales
C1: Forecasted Sales
E3: Mortgage Information
B4: Calendar Year | C4: =CashFlows!E18 -> 2004 | E4: =CashFlows!G18 -> 2005 | G4: =CashFlows!I18 -> 2006 | I4: =CashFlows!K18 -> 2007 | K4: =CashFlows!M18 -> 2008
B5: First Mortgage Principal Balance | C5: =FV(Mortgage!J7/Mortgage!J10,Variables!F59,Mortgage!J11,-Mortgage!J6) -> 210189.3639 | E5: =FV(Mortgage!$J$7/Mortgage!$J$10,Mortgage!$J$10,Mortgage!$J$11,-C5,0)*(fnc_Loan_Term_Mtg_1>1) -> 199838.2193 | G5: =FV(Mortgage!$J$7/Mortgage!$J$10,Mortgage!$J$10,Mortgage!$J$11,-E5,0)*(fnc_Loan_Term_Mtg_1>2) -> 188916.7875 | I5: =FV(Mortgage!$J$7/Mortgage!$J$10,Mortgage!$J$10,Mortgage!$J$11,-G5,0)*(fnc_Loan_Term_Mtg_1>3) -> 177393.649 | K5: =FV(Mortgage!$J$7/Mortgage!$J$10,Mortgage!$J$10,Mortgage!$J$11,-I5,0)*(fnc_Loan_Term_Mtg_1>4) -> 165235.6533
B6: Second Mortgage Principal Balance | C6: =FV(Mortgage!L7/Mortgage!L10,Variables!H59,Mortgage!L11,-Mortgage!L6) -> 0 | E6: =FV(Mortgage!$L$7/Mortgage!$L$10,Mortgage!$L$10,Mortgage!$L$11,-C6,0)*(fnc_Loan_Term_Mtg_2>1) -> 0 | G6: =FV(Mortgage!$L$7/Mortgage!$L$10,Mortgage!$L$10,Mortgage!$L$11,-E6,0)*(fnc_Loan_Term_Mtg_2>2) -> 0 | I6: =FV(Mortgage!$L$7/Mortgage!$L$10,Mortgage!$L$10,Mortgage!$L$11,-G6,0)*(fnc_Loan_Term_Mtg_2>3) -> 0 | K6: =FV(Mortgage!$L$7/Mortgage!$L$10,Mortgage!$L$10,Mortgage!$L$11,-I6,0)*(fnc_Loan_Term_Mtg_2>4) -> 0
B7: Total Mortgage Balances Due | C7: =+C5+C6 -> 210189.3639 | E7: =+E5+E6 -> 199838.2193 | G7: =+G5+G6 -> 188916.7875 | I7: =+I5+I6 -> 177393.649 | K7: =+K5+K6 -> 165235.6533
B8: Total Mortgage Payments | C8: =SUM(Per_Pmt_Mtg_1+Per_Pmt_Mtg_2)*12 -> 21396.28723 | E8: =SUM(Per_Pmt_Mtg_1+Per_Pmt_Mtg_2)*12 -> 21396.28723 | G8: =SUM(Per_Pmt_Mtg_1+Per_Pmt_Mtg_2)*12 -> 21396.28723 | I8: =SUM(Per_Pmt_Mtg_1+Per_Pmt_Mtg_2)*12 -> 21396.28723 | K8: =SUM(Per_Pmt_Mtg_1+Per_Pmt_Mtg_2)*12 -> 21396.28723
B9: Net Operating income on Sales | C9: =+Fnc_NOI_Yr_1 -> 12102.6 | E9: =+Fnc_NOI_Yr_2 -> 12843.918 | G9: =+Fnc_NOI_Yr_3 -> 13629.22468 | I9: =+Fnc_NOI_Yr_4 -> 14461.0761 | K9: =+Fnc_NOI_Yr_5 -> 15342.17472
E11: Forecasted Sales Analysis
B12: =" Sales for Calendar Year - "&TEXT(CashFlows!M18,"####") -> Sales for Calendar Year - 2008 | C12: Analysis I | E12: Analysis II | G12: Analysis III | I12: Analysis IIII | K12: Analysis V
B13: FORECASTED SALES PRICE | C13: =+Fnc_NOI_Yr_5/Fnc_Cap_Rate_Used_In_Sale_1 -> 153421.7472 | E13: =+Fnc_NOI_Yr_5/(Fnc_Cap_Rate_Used_In_Sale_1+0.005) -> 146115.9497 | G13: =+Fnc_NOI_Yr_5/Fnc_Cap_rate_used_in_sale_2 -> 153421.7472 | I13: =+Fnc_NOI_Yr_5/(Fnc_Cap_rate_used_in_sale_2+0.005) -> 146115.9497 | K13: =+Fnc_NOI_Yr_5/Fnc_cap_rate_used_in_sale_3 -> 153421.7472
B14: Cap Rate used on income | C14: ="@ "&TEXT(Fnc_Cap_Rate_Used_In_Sale_1,"#.##%")&" cap " -> @ 10.% cap | E14: ="@ "&TEXT(Fnc_Cap_Rate_Used_In_Sale_1+0.005,"#.##%")&" cap " -> @ 10.5% cap | G14: ="@ "&TEXT(Fnc_Cap_rate_used_in_sale_2,"#.##%")&" cap" -> @ 10.% cap | I14: ="@ "&TEXT(Fnc_Cap_rate_used_in_sale_2+0.005,"#.##%")&" cap" -> @ 10.5% cap | K14: ="@ "&TEXT(Fnc_cap_rate_used_in_sale_3,"#.##%")&" cap" -> @ 10.% cap
B15: Total Mortgage Balances Due | C15: =+K5+K6 -> 165235.6533 | E15: =+K5+K6 -> 165235.6533 | G15: =+K5+K6 -> 165235.6533 | I15: =+K5+K6 -> 165235.6533 | K15: =+K5+K6 -> 165235.6533
B16: Cost of Sale | C16: =+C29*fnc_expenses_of_sale -> 9205.304831 | E16: =+E29*fnc_expenses_of_sale -> 8766.956982 | G16: =+G29*fnc_expenses_of_sale -> 9205.304831 | I16: =+I29*fnc_expenses_of_sale -> 8766.956982 | K16: =+K29*fnc_expenses_of_sale -> 9205.304831
B17: Return on Sale of Property | C17: =SUM(C13-(C15+C16)) -> -21019.21093 | E17: =SUM(E13-(E15+E16)) -> -27886.66056 | G17: =SUM(G13-(G15+G16)) -> -21019.21093 | I17: =SUM(I13-(I15+I16)) -> -27886.66056 | K17: =SUM(K13-(K15+K16)) -> -21019.21093
B18: CALCULATION OF ADJUSTED BASIS: | C18: Analysis I | E18: Increase .005 | G18: Analysis II | I18: Increase .005 | K18: Analysis III
B19: Basis at Acquisition | C19: =+fnc_adjusted_basis -> 275000 | E19: =+fnc_adjusted_basis -> 275000 | G19: =+fnc_adjusted_basis -> 275000 | I19: =+fnc_adjusted_basis -> 275000 | K19: =+fnc_adjusted_basis -> 275000
B20: +Capital Additions
B21: -Cost Recovery (Depreciation) | C21: =SUM(Fnc_Cost_recovery_5_Years) -> 45448 | E21: =SUM(Fnc_Cost_recovery_5_Years) -> 45448 | G21: =SUM(Fnc_Cost_recovery_5_Years) -> 45448 | I21: =SUM(Fnc_Cost_recovery_5_Years) -> 45448 | K21: =SUM(Fnc_Cost_recovery_5_Years) -> 45448
B22: -Partial Sales Base
B23: =Adjusted Basis at Sale | C23: =+C19+C20-C21-C22 -> 229552 | E23: =+E19+E20-E21-E22 -> 229552 | G23: =+G19+G20-G21-G22 -> 229552 | I23: =+I19+I20-I21-I22 -> 229552 | K23: =+K19+K20-K21-K22 -> 229552
B24: CALCULATION OF COST RECOVERY
B25: Total Cost Recovery | C25: =+C21 -> 45448 | E25: =+E21 -> 45448 | G25: =+G21 -> 45448 | I25: =+I21 -> 45448 | K25: =+K21 -> 45448
B26: -Straight Line Cost Recovery | C26: =(3)*ROUND(ROUND(1/Useful_Life_Real,5)*Value_Improvements_Real,0)+ROUND(ROUND((12.5-Month_Placed_in_Svc)/12*ROUND(1/Useful_Life_Real,5),5)*Value_Improvements_Real,0)+ROUND(ROUND((MONTH(Date_of_Sale)-0.5)/12*ROUND(1/Useful_Life_Real,5),5)*Value_Improvements_Real,0) -> 43539 | E26: =(3)*ROUND(ROUND(1/Useful_Life_Real,5)*Value_Improvements_Real,0)+ROUND(ROUND((12.5-Month_Placed_in_Svc)/12*ROUND(1/Useful_Life_Real,5),5)*Value_Improvements_Real,0)+ROUND(ROUND((MONTH(Date_of_Sale)-0.5)/12*ROUND(1/Useful_Life_Real,5),5)*Value_Improvements_Real,0) -> 43539 | G26: =+C26 -> 43539 | I26: =(3)*ROUND(ROUND(1/Useful_Life_Real,5)*Value_Improvements_Real,0)+ROUND(ROUND((12.5-Month_Placed_in_Svc)/12*ROUND(1/Useful_Life_Real,5),5)*Value_Improvements_Real,0)+ROUND(ROUND((MONTH(Date_of_Sale)-0.5)/12*ROUND(1/Useful_Life_Real,5),5)*Value_Improvements_Real,0) -> 43539 | K26: =+G26 -> 43539
B27: =Excess Cost Recovery | C27: =+C25-C26 -> 1909 | E27: =+E25-E26 -> 1909 | G27: =+G25-G26 -> 1909 | I27: =+I25-I26 -> 1909 | K27: =+K25-K26 -> 1909
B28: CALCULATION OF CAPITAL GAIN ON SALE:
B29: Sale Price | C29: =+C13 -> 153421.7472 | E29: =+E13 -> 146115.9497 | G29: =+G13 -> 153421.7472 | I29: =+I13 -> 146115.9497 | K29: =+K13 -> 153421.7472
B30: -Costs of Sale | C30: =+C29*fnc_expenses_of_sale -> 9205.304831 | E30: =+E29*fnc_expenses_of_sale -> 8766.956982 | G30: =+G29*fnc_expenses_of_sale -> 9205.304831 | I30: =+I29*fnc_expenses_of_sale -> 8766.956982 | K30: =+K29*fnc_expenses_of_sale -> 9205.304831
B31: -Adjusted Basis at Sale | C31: =+C23 -> 229552 | E31: =+E23 -> 229552 | G31: =+G23 -> 229552 | I31: =+I23 -> 229552 | K31: =+K23 -> 229552
B32: -Participation Payments
B33: =Total Gain | C33: =+C29-C30-C31-C32 -> -85335.55764 | E33: =+E29-E30-E31-E32 -> -92203.00728 | G33: =+G29-G30-G31-G32 -> -85335.55764 | I33: =+I29-I30-I31-I32 -> -92203.00728 | K33: =+K29-K30-K31-K32 -> -85335.55764
B34: -Excess Cost Recovery | C34: =+C27 -> 1909 | E34: =+E27 -> 1909 | G34: =+G27 -> 1909 | I34: =+I27 -> 1909 | K34: =+K27 -> 1909
B35: -Suspended Losses
B36: =Gain or Loss | C36: =+C33-C34-C35 -> -87244.55764 | E36: =+E33-E34-E35 -> -94112.00728 | G36: =+G33-G34-G35 -> -87244.55764 | I36: =+I33-I34-I35 -> -94112.00728 | K36: =+K33-K34-K35 -> -87244.55764
B37: -Straight Line Cost Recovery Gain | C37: =IF(C36<0,0,IF(C26>C36,C36,C26)) -> 0 | E37: =IF(E36<0,0,IF(E26>E36,E36,E26)) -> 0 | G37: =IF(G36<0,0,IF(G26>G36,G36,G26)) -> 0 | I37: =IF(I36<0,0,IF(I26>I36,I36,I26)) -> 0 | K37: =IF(K36<0,0,IF(K26>K36,K36,K26)) -> 0
B38: =Capital Gain from Appreciation | C38: =+C36-C37 -> -87244.55764 | E38: =+E36-E37 -> -94112.00728 | G38: =+G36-G37 -> -87244.55764 | I38: =+I36-I37 -> -94112.00728 | K38: =+K36-K37 -> -87244.55764
B39: ORDINARY INCOME TAXABLE INCOME:
B40: Excess Cost Recovery | C40: =+C27 -> 1909 | E40: =+E27 -> 1909 | G40: =+G27 -> 1909 | I40: =+I27 -> 1909 | K40: =+K27 -> 1909
B41: -Unamortized Loan Points | C41: =Points_Mtg_1+Points_Mtg_2-SUM(CashFlows!E32:M32) -> 0 | E41: =Points_Mtg_1+Points_Mtg_2-SUM(CashFlows!G32:N32) -> 0 | G41: =+C41 -> 0 | I41: =Points_Mtg_1+Points_Mtg_2-SUM(CashFlows!K32:P32) -> 0 | K41: =+C41 -> 0
B42: =Ordinary Taxable Income | C42: =+C40-C41 -> 1909 | E42: =+E40-E41 -> 1909 | G42: =+G40-G41 -> 1909 | I42: =+I40-I41 -> 1909 | K42: =+K40-K41 -> 1909
B43: CALCULATION SALES PROCEEDS AFTER TAX:
B44: Sale Price | C44: =C13 -> 153421.7472 | E44: =E13 -> 146115.9497 | G44: =G13 -> 153421.7472 | I44: =I13 -> 146115.9497 | K44: =K13 -> 153421.7472
B45: -Cost of Sale | C45: =C30 -> 9205.304831 | E45: =E30 -> 8766.956982 | G45: =G30 -> 9205.304831 | I45: =I30 -> 8766.956982 | K45: =K30 -> 9205.304831
B46: -Participation Payments
B47: -Mortgage Balances | C47: =K7 -> 165235.6533 | E47: =K7 -> 165235.6533 | G47: =$K$7 -> 165235.6533 | I47: =K7 -> 165235.6533 | K47: =$K$7 -> 165235.6533
B48: =Sale Proceeds Before Tax | C48: =C44-C45-C46-C47 -> -21019.21093 | E48: =E44-E45-E46-E47 -> -27886.66056 | G48: =G44-G45-G46-G47 -> -21019.21093 | I48: =I44-I45-I46-I47 -> -27886.66056 | K48: =K44-K45-K46-K47 -> -21019.21093
B49: =" -Tax (Savings) : Ordinary Income at "&TEXT(Variables!D18,"00%") -> -Tax (Savings) : Ordinary Income at 25% | C49: =C42*Ordinary_Income_Tax_Bracket -> 477.25 | E49: =E42*Ordinary_Income_Tax_Bracket -> 477.25 | G49: =G42*Ordinary_Income_Tax_Bracket -> 477.25 | I49: =I42*Ordinary_Income_Tax_Bracket -> 477.25 | K49: =K42*Ordinary_Income_Tax_Bracket -> 477.25
B50: =" -Tax : Straight Line Recapture at "&TEXT(Variables!C4,"00%") -> -Tax : Straight Line Recapture at Year 1 | C50: =C37*Variables!$D$20 -> 0 | E50: =E37*Variables!$D$20 -> 0 | G50: =G37*Variables!$D$20 -> 0 | I50: =I37*Variables!$D$20 -> 0 | K50: =K37*Variables!$D$20 -> 0
B51: =" -Tax on Capital Gains at "&TEXT(Variables!D19,"00%") -> -Tax on Capital Gains at 20% | C51: =C38*Fnc_Capital_Gain_Max_Tax_Rate -> -17448.91153 | E51: =E38*Fnc_Capital_Gain_Max_Tax_Rate -> -18822.40146 | G51: =G38*Fnc_Capital_Gain_Max_Tax_Rate -> -17448.91153 | I51: =I38*Fnc_Capital_Gain_Max_Tax_Rate -> -18822.40146 | K51: =K38*Fnc_Capital_Gain_Max_Tax_Rate -> -17448.91153
B52: =SALE PROCEEDS AFTER TAX | C52: =Fnc_SPBT_1-C49-C50-C51 -> -4047.549398 | E52: =E48-E49-E50-E51 -> -9541.509107 | G52: =G48-G49-G50-G51 -> -4047.549398 | I52: =I48-I49-I50-I51 -> -9541.509107 | K52: =K48-K49-K50-K51 -> -4047.549398
C56: Real Estate Investment Software CopyR@1997 - 2002

Sheet Proforma
E1: Proforma Summary
E2: ="Proforma Calendar Year - "&TEXT(CashFlows!E18,"####") -> Proforma Calendar Year - 2004
E4: Annual | G4: Monthly | L4: Annual | N4: Monthly
E5: Balance | G5: Figure | L5: Balance | N5: Figure
B6: Gross Operatiing Income | E6: =SUM(GOI_APOD) -> 18156.6 | G6: =SUM(E6/12) -> 1513.05 | J6: First Mortgage | L6: =SUM(Fnc_Amount_Mtg_1) -> 220000 | N6: =SUM(Per_Pmt_Mtg_1) -> 1783.023936
B7: Total Operating Expenses | E7: =SUM(OP_EXP_APOD) -> 6054 | G7: =SUM(E7/12) -> 504.5 | J7: Second Mortgage | L7: =SUM(Fnc_Amount_Mtg_2) -> 0 | N7: =SUM(Per_Pmt_Mtg_2) -> 0
B8: Net Operating Income | E8: =SUM(E6-E7) -> 12102.6 | G8: =SUM(E8/12) -> 1008.55 | J8: Total Mortgage | L8: =SUM(L6:L7) -> 220000 | N8: =SUM(N6:N7) -> 1783.023936
B10: Cap Rate for Estimated Sale | E10: 0.06 | J10: Purchase Price | L10: =SUM(purchase_price) -> 275000
B11: NOI Cash Flow | E11: =SUM(E8) -> 12102.6 | J11: Land | L11: =SUM(fnc_land_value) -> 0
B12: Total Sales Price | E12: =SUM(E8/E10) -> 201710 | J12: Personal Property | L12: =SUM(fnc_value_personal) -> 0
G14: Comparison
B16: Forecasted Sales Price | E16: =SUM(E8/E10) -> 201710 | J16: Total Acquisition Cost | L16: =SUM(L10:L13) -> 275000
B17: Price PSF | E17: =SUM(E12/Size_of_Property) -> 102.183384 | J17: Price PSF | L17: =SUM(L16/Size_of_Property) -> 139.3110436
B18: Monthly Cash flow | E18: =SUM(E8/12) -> 1008.55 | J18: Monthly Acquistion Cost | L18: =SUM(N8) -> 1783.023936
G20: Cash | H20: Annual | J20: Monthly | K20: Percent
E21: Year | G21: Flow | H21: ROI | J21: ROI | K21: ROI
E22: =TEXT(CashFlows!E18,"####") -> 2004 | H22: =Fnc_CFBT_1 -> -9293.687231 | J22: =SUM(H22/12) -> -774.4739359 | K22: =SUM((H22)/(C24)) -> -0.1689761315
C23: Invested Amount | E23: =TEXT(CashFlows!G18,"####") -> 2005 | G23: CFBT | H23: =Fnc_CFBT_2 -> -8552.369231 | J23: =SUM(H23/12) -> -712.6974359 | K23: =SUM((H23)/(C24)) -> -0.1554976224
C24: =SUM(fnc_Initial_Investment) -> 55000 | E24: =TEXT(CashFlows!I18,"####") -> 2006 | G24: NOI | H24: =Fnc_CFBT_3 -> -7767.062553 | J24: =SUM(H24/12) -> -647.2552128 | K24: =SUM((H24)/(C24)) -> -0.1412193191
E25: =TEXT(CashFlows!K18,"####") -> 2007 | H25: =Fnc_CFBT_4 -> -6935.211133 | J25: =SUM(H25/12) -> -577.9342611 | K25: =SUM((H25)/(C24)) -> -0.1260947479
E26: =TEXT(CashFlows!M18,"####") -> 2008 | H26: =IF(Fnc_CFBT_5<0,TEXT(-Fnc_CFBT_5,"($#,###)"),TEXT(Fnc_CFBT_5,"$#,###"))&" " -> ($6,054) | J26: =SUM(H26/12) -> -504.5 | K26: =SUM((H26)/(C24)) -> -0.1100727273
E29: Real Estate Investment Software CopyR@1997 - 2002

Sheet Returns
F1: RETURNS
C2: INTERNAL RATE OF RETURN | G2: RETURN ON INVESTMENT | K2: NET PRESENT VALUE
G3: Cash Flow Before Tax
C4: Analysis I | D4: Investment | F4: Return on | G4: Analysis II | H4: Investment | J4: Return on | K4: Analysis III | L4: Investment | N4: Return on
D5: Amount | F5: Investment | H5: Amount | J5: Investment | L5: Amount | N5: Investment
B6: Year | D6: =-fnc_Initial_Investment -> -55000 | H6: =-fnc_Initial_Investment -> -55000 | L6: =-fnc_Initial_Investment -> -55000
B7: 1 | D7: =Fnc_CFBT_1 -> -9293.687231 | F7: =SUM((D7)/(D6*-1)) -> -0.1689761315 | H7: =Fnc_CFBT_1 -> -9293.687231 | J7: =SUM((H7)/(H6*-1)) -> -0.1689761315 | L7: =Fnc_CFBT_1 -> -9293.687231 | N7: =SUM((L7)/(L6*-1)) -> -0.1689761315
B8: 2 | C8: CFBT | D8: =Fnc_CFBT_2 -> -8552.369231 | F8: =SUM((D8)/(D6*-1)) -> -0.1554976224 | G8: CFBT | H8: =Fnc_CFBT_2 -> -8552.369231 | J8: =SUM((H8)/(H6*-1)) -> -0.1554976224 | K8: CFBT | L8: =Fnc_CFBT_2 -> -8552.369231 | N8: =SUM((L8)/(L6*-1)) -> -0.1554976224
B9: 3 | C9: NOI | D9: =Fnc_CFBT_3 -> -7767.062553 | F9: =SUM((D9)/(D6*-1)) -> -0.1412193191 | G9: NOI | H9: =Fnc_CFBT_3 -> -7767.062553 | J9: =SUM((H9)/(H6*-1)) -> -0.1412193191 | K9: NOI | L9: =Fnc_CFBT_3 -> -7767.062553 | N9: =SUM((L9)/(L6*-1)) -> -0.1412193191
B10: 4 | D10: =Fnc_CFBT_4 -> -6935.211133 | F10: =SUM((D10)/(D6*-1)) -> -0.1260947479 | H10: =Fnc_CFBT_4 -> -6935.211133 | J10: =SUM((H10)/(H6*-1)) -> -0.1260947479 | L10: =Fnc_CFBT_4 -> -6935.211133 | N10: =SUM((L10)/(L6*-1)) -> -0.1260947479 | AK10: =-fnc_Initial_Investment -> -55000 | AM10: 0 | AN10: =-fnc_Initial_Investment -> -55000 | AP10: 0 | AQ10: =-fnc_Initial_Investment -> -55000
B11: 5 | D11: =IF(Fnc_CFBT_5<0,TEXT(-Fnc_CFBT_5,"($#,###)"),TEXT(Fnc_CFBT_5,"$#,###"))&" " -> ($6,054) | F11: =SUM((D11)/(D6*-1)) -> -0.1100727273 | H11: =IF(Fnc_CFBT_5<0,TEXT(-Fnc_CFBT_5,"($#,###)"),TEXT(Fnc_CFBT_5,"$#,###")) -> ($6,054) | J11: =SUM((H11)/(H6*-1)) -> -0.1100727273 | L11: =IF(Fnc_CFBT_5<0,TEXT(-Fnc_CFBT_5,"($#,###)"),TEXT(Fnc_CFBT_5,"$#,###")) -> ($6,054) | N11: =SUM((L11)/(L6*-1)) -> -0.1100727273 | AK11: =Fnc_CFBT_1 -> -9293.687231 | AM11: 1 | AN11: =Fnc_CFBT_1 -> -9293.687231 | AP11: 1 | AQ11: =Fnc_CFBT_1 -> -9293.687231
C12: IRR | D12: =IF(SUM(AK10:AK15)<0," Negative!",IF(ISERROR(AK16)," Zero",AK16)) -> Negative! | E12: Sales | F12: =IF(Sales!C48<0,TEXT(-Sales!C48,"($#,###)"),TEXT(Sales!C48,"$#,###")) -> ($21,019) | G12: IRR | H12: =IF(SUM(AN10:AN15)<0," Negative!",IF(ISERROR(AN16)," Zero",AN16)) -> Negative! | I12: Sales | J12: =IF(Sales!G48<0,TEXT(-Sales!G48,"($#,###)"),TEXT(Sales!G48,"$#,###")) -> ($21,019) | K12: IRR | L12: =IF(SUM(AQ10:AQ15)<0," Negative!",IF(ISERROR(AQ16)," Zero",AQ16)) -> Negative! | M12: Sales | N12: =IF(Sales!K48<0,TEXT(-Sales!K48,"($#,###)"),TEXT(Sales!K48,"$#,###")) -> ($21,019) | AK12: =Fnc_CFBT_2 -> -8552.369231 | AM12: 2 | AN12: =Fnc_CFBT_2 -> -8552.369231 | AP12: 2 | AQ12: =Fnc_CFBT_2 -> -8552.369231
C13: NPV= | D13: =NPV(D14,AK11:AK15)+AK10+0.00001 -> -114621.6536 | F13: Cap Rate | G13: NPV= | H13: =NPV(H14,AN11:AN15)+AN10+0.00001 -> -114621.6536 | J13: Cap Rate | K13: NPV= | L13: =NPV(L14,AQ11:AQ15)+AQ10+0.00001 -> -114621.6536 | N13: Cap Rate | AK13: =Fnc_CFBT_3 -> -7767.062553 | AM13: 3 | AN13: =Fnc_CFBT_3 -> -7767.062553 | AP13: 3 | AQ13: =Fnc_CFBT_3 -> -7767.062553
C14: @ IRR of | D14: =IF(ISERROR(AK16),0.000000000000000001,AK16) -> 1e-18 | F14: on Sale | G14: @ IRR of | H14: =IF(ISERROR(AN16),0.000000000000000001,AN16) -> 1e-18 | J14: on Sale | K14: @ IRR of | L14: =IF(ISERROR(AQ16),0.000000000000000001,AQ16) -> 1e-18 | N14: on Sale | AK14: =Fnc_CFBT_4 -> -6935.211133 | AM14: 4 | AN14: =Fnc_CFBT_4 -> -6935.211133 | AP14: 4 | AQ14: =Fnc_CFBT_4 -> -6935.211133
C15: Sales & Rate Values | F15: =Fnc_Cap_Rate_Used_In_Sale_1 -> 0.1 | G15: Sales & Rate Values | J15: =Fnc_Cap_rate_used_in_sale_2 -> 0.1 | K15: Sales & Rate Values | N15: =Fnc_cap_rate_used_in_sale_3 -> 0.1 | AK15: =Fnc_CFBT_5+Sales!C48 -> -27073.32344 | AM15: 5 | AN15: =Fnc_CFBT_5+Sales!G48 -> -27073.32344 | AP15: 5 | AQ15: =Fnc_CFBT_5+Sales!K48 -> -27073.32344
G16: Cash Flow After Tax | AK16: =IF(AND(AK10>=0,SUM(AK11:AK15)>0)=TRUE,"Infinite!",IRR(AK10:AK15)) ->  | AN16: =IF(AND(AN10>=0,SUM(AN11:AN15)>0)=TRUE,"Infinite!",IRR(AN10:AN15)) ->  | AQ16: =IF(AND(AQ10>=0,SUM(AQ11:AQ15)>0)=TRUE,"Infinite!",IRR(AQ10:AQ15)) -> 
C17: Analysis I | D17: Investment | F17: Return on | G17: Analysis II | H17: Investment | J17: Return on | K17: Analysis III | L17: Investment | N17: Return on
B18: Year | D18: Amount | F18: Investment | H18: Amount | J18: Investment | L18: Amount | N18: Investment
D19: =-fnc_Initial_Investment -> -55000 | H19: =-fnc_Initial_Investment -> -55000 | L19: =-fnc_Initial_Investment -> -55000
B20: 1 | D20: =Fnc_CFAT_1 -> -7226.924456 | F20: =SUM((D20)/(D19*-1)) -> -0.1313986265 | H20: =Fnc_CFAT_1 -> -7226.924456 | J20: =SUM((H20)/(H19*-1)) -> -0.1313986265 | L20: =Fnc_CFAT_1 -> -7226.924456 | N20: =SUM((L20)/(L19*-1)) -> -0.1313986265
B21: 2 | C21: CFAT | D21: =Fnc_CFAT_2 -> -6710.563058 | F21: =SUM((D21)/(D19*-1)) -> -0.1220102374 | G21: CFAT | H21: =Fnc_CFAT_2 -> -6710.563058 | J21: =SUM((H21)/(H19*-1)) -> -0.1220102374 | K21: CFAT | L21: =Fnc_CFAT_2 -> -6710.563058 | N21: =SUM((L21)/(L19*-1)) -> -0.1220102374
B22: 3 | C22: NOI | D22: =Fnc_CFAT_3 -> -6264.154862 | F22: =SUM((D22)/(D19*-1)) -> -0.1138937248 | G22: NOI | H22: =Fnc_CFAT_3 -> -6264.154862 | J22: =SUM((H22)/(H19*-1)) -> -0.1138937248 | K22: NOI | L22: =Fnc_CFAT_3 -> -6264.154862 | N22: =SUM((L22)/(L19*-1)) -> -0.1138937248 | AK22: =-fnc_Initial_Investment -> -55000 | AM22: 0 | AN22: =-fnc_Initial_Investment -> -55000 | AP22: 0 | AQ22: =-fnc_Initial_Investment -> -55000
B23: 4 | D23: =Fnc_CFAT_4 -> -5790.692978 | F23: =SUM((D23)/(D19*-1)) -> -0.1052853269 | H23: =Fnc_CFAT_4 -> -5790.692978 | J23: =SUM((H23)/(H19*-1)) -> -0.1052853269 | L23: =Fnc_CFAT_4 -> -5790.692978 | N23: =SUM((L23)/(L19*-1)) -> -0.1052853269 | AK23: =Fnc_CFAT_1 -> -7226.924456 | AM23: 1 | AN23: =Fnc_CFAT_1 -> -7226.924456 | AP23: 1 | AQ23: =Fnc_CFAT_1 -> -7226.924456
B24: 5 | D24: =IF(Fnc_CFAT_5<0,TEXT(-Fnc_CFAT_5,"($#,###)"),TEXT(Fnc_CFAT_5,"$#,###")) -> ($5,289) | F24: =SUM((D24)/(D19*-1)) -> -0.09616363636 | H24: =IF(Fnc_CFAT_5<0,TEXT(-Fnc_CFAT_5,"($#,###)"),TEXT(Fnc_CFAT_5,"$#,###")) -> ($5,289) | J24: =SUM((H24)/(H19*-1)) -> -0.09616363636 | L24: =IF(Fnc_CFAT_5<0,TEXT(-Fnc_CFAT_5,"$(#,###)"),TEXT(Fnc_CFAT_5,"$#,###")) -> $(5,289) | N24: =SUM((L24)/(L19*-1)) -> -0.09616363636 | AK24: =Fnc_CFAT_2 -> -6710.563058 | AM24: 2 | AN24: =Fnc_CFAT_2 -> -6710.563058 | AP24: 2 | AQ24: =Fnc_CFAT_2 -> -6710.563058
C25: IRR | D25: =IF(SUM(AK23:AK27)<0," Negative!",IF(ISERROR(AK28)," Zero",AK28)) -> Negative! | E25: Sales | F25: =IF(Fnc_SPAT_1<0,TEXT(-Fnc_SPAT_1,"($#,###)"),TEXT(Fnc_SPAT_1,"$#,###")) -> ($4,048) | G25: IRR | H25: =IF(SUM(AN23:AN27)<0," Negative!",IF(ISERROR(AN28)," Zero",AN28)) -> Negative! | I25: Sales | J25: =IF(Fnc_SPAT_2<0,TEXT(-Fnc_SPAT_2,"($#,###)"),TEXT(Fnc_SPAT_2,"$#,###")) -> ($4,048) | K25: IRR | L25: =IF(SUM(AQ23:AQ27)<0," Negative!",IF(ISERROR(AQ28)," Zero",AQ28)) -> Negative! | M25: Sales | N25: =IF(Fnc_SPAT_3<0,TEXT(-Fnc_SPAT_3,"($#,###)"),TEXT(Fnc_SPAT_3,"$#,###")) -> ($4,048) | AK25: =Fnc_CFAT_3 -> -6264.154862 | AM25: 3 | AN25: =Fnc_CFAT_3 -> -6264.154862 | AP25: 3 | AQ25: =Fnc_CFAT_3 -> -6264.154862
C26: NPV= | D26: =NPV(D27,AK21:AK27)+DL73+0.0000001 -> -90328.46807 | F26: Cap Rate | G26: NPV= | H26: =NPV(H27,AN21:AN27)+DO73+0.0000001 -> -90328.46807 | J26: Cap Rate | K26: NPV= | L26: =NPV(L27,AQ21:AQ27)+DR73+0.0000001 -> -90328.46807 | N26: Cap Rate | AK26: =Fnc_CFAT_4 -> -5790.692978 | AM26: 4 | AN26: =Fnc_CFAT_4 -> -5790.692978 | AP26: 4 | AQ26: =Fnc_CFAT_4 -> -5790.692978
C27: @ IRR of | D27: =IF(ISERROR(AK28),0.000000000000000001,AK28) -> 1e-18 | F27: on Sale | G27: @ IRR of | H27: =IF(ISERROR(AN28),0.000000000000000001,AN28) -> 1e-18 | J27: on Sale | K27: @ IRR of | L27: =IF(ISERROR(AQ28),0.000000000000000001,AQ28) -> 1e-18 | N27: on Sale | AK27: =Fnc_CFAT_5+Fnc_SPAT_1 -> -9336.132718 | AM27: 5 | AN27: =Fnc_CFAT_5+Fnc_SPAT_2 -> -9336.132718 | AP27: 5 | AQ27: =Fnc_CFAT_5+Fnc_SPAT_3 -> -9336.132718
C28: Sales & Rate Values | F28: =Fnc_Cap_Rate_Used_In_Sale_1 -> 0.1 | G28: Sales & Rate Values | J28: =Fnc_Cap_rate_used_in_sale_2 -> 0.1 | K28: Sales & Rate Values | N28: =Fnc_cap_rate_used_in_sale_3 -> 0.1 | AK28: =IF(AND(AK22>=0,SUM(AK23:AK27)>0)=TRUE,"Infinite!",IRR(AK22:AK27)) ->  | AN28: =IF(AND(AN22>=0,SUM(AN23:AN27)>0)=TRUE,"Infinite!",IRR(AN22:AN27)) ->  | AQ28: =IF(AND(AQ22>=0,SUM(AQ23:AQ27)>0)=TRUE,"Infinite!",IRR(AQ22:AQ27)) -> 
G31: Real Estate Investment Software CopyR@1997 - 2002

Sheet Variables
C1: Variables
D2: Before Taxes
B3: Return on Investment | D3: ROI | F3: Rate of Return
B4: First year proceeds | C4: Year 1 | D4: =roi_y1_cash -> -9293.687231 | F4: =Fnc_roi_y1_bt -> -0.1689761315
B6: Sales Rate & Expenses
D7: Analysis I | F7: Analysis II | H7: Analysis III | J7: Analysis IIII | L7: Analysis V | T7: Analysis VI
B8: Cap rate for Sales Forecast | D8: 0.1 | F8: =SUM(Fnc_Cap_Rate_Used_In_Sale_1+0.005) -> 0.105 | H8: 0.1 | J8: =SUM(Fnc_Cap_rate_used_in_sale_2+0.005) -> 0.105 | L8: 0.1 | T8: =SUM(Fnc_cap_rate_used_in_sale_3+0.005) -> 0.105
B9: Expenses for Sales Forecast | D9: 0.06 | F9: =fnc_expenses_of_sale -> 0.06 | H9: =fnc_expenses_of_sale -> 0.06 | J9: =fnc_expenses_of_sale -> 0.06 | L9: =fnc_expenses_of_sale -> 0.06 | T9: =fnc_expenses_of_sale -> 0.06
B11: Yearly Calculation Variables | D11: Year | F11: Year | H11: Year | J11: Year | L11: Year | T11: Year
D12: 1 | F12: 2 | H12: 3 | J12: 4 | L12: 5 | T12: 6
B13: Vacancy Rates | D13: 0.083 | F13: =+D13 -> 0.083 | H13: =+F13 -> 0.083 | J13: =+H13 -> 0.083 | L13: =+J13 -> 0.083 | T13: =+L13 -> 0.083
B14: Rent Income escalation | F14: 0.055 | H14: =+F14 -> 0.055 | J14: =+H14 -> 0.055 | L14: =+J14 -> 0.055 | T14: =+L14 -> 0.055
B15: Vancany Income escalation | F15: 0 | H15: =+F15 -> 0 | J15: =+H15 -> 0 | L15: =+J15 -> 0 | T15: =+L15 -> 0
B16: Business Income escalation | F16: 0 | H16: =+F16 -> 0 | J16: =+H16 -> 0 | L16: =+J16 -> 0 | T16: =+L16 -> 0
B17: Expense escalation | F17: 0.0425 | H17: =+F17 -> 0.0425 | J17: =+H17 -> 0.0425 | L17: =+J17 -> 0.0425 | T17: =+L17 -> 0.0425
B18: Income Tax Bracket | D18: 0.25 | F18: =Ordinary_Income_Tax_Bracket -> 0.25 | H18: =Ordinary_Income_Tax_Bracket -> 0.25 | J18: =Ordinary_Income_Tax_Bracket -> 0.25 | L18: =Ordinary_Income_Tax_Bracket -> 0.25 | T18: =Ordinary_Income_Tax_Bracket -> 0.25
B19: Capital Gain Tax Rate | D19: 0.2 | F19: =Fnc_Capital_Gain_Max_Tax_Rate -> 0.2 | H19: =Fnc_Capital_Gain_Max_Tax_Rate -> 0.2 | J19: =Fnc_Capital_Gain_Max_Tax_Rate -> 0.2 | L19: =Fnc_Capital_Gain_Max_Tax_Rate -> 0.2 | T19: =Fnc_Capital_Gain_Max_Tax_Rate -> 0.2
B20: Tax Rate on Straight Line Recapture | D20: 0.26 | F20: =D20 -> 0.26 | H20: =F20 -> 0.26 | J20: =H20 -> 0.26 | L20: =J20 -> 0.26 | T20: =L20 -> 0.26
B21: Service Date | D21: 1 | F21: =Month_Placed_in_Svc -> 1 | H21: =Month_Placed_in_Svc -> 1 | J21: =Month_Placed_in_Svc -> 1 | L21: =Month_Placed_in_Svc -> 1 | T21: =Month_Placed_in_Svc -> 1
C23: Real Estate Investment Software CopyR@1997 - 2002
D56: payments occurrence
F57: first | H57: second
F58: =IF(Pmts_Year_Mtg_1=12,"Monthly",IF(Pmts_Year_Mtg_1=4,"Quarterly",IF(Pmts_Year_Mtg_1=1,"Annually",))) -> Monthly | H58: =IF(Pmts_Year_Mtg_2=12,"Monthly",IF(Pmts_Year_Mtg_2=4,"Quarterly",IF(Pmts_Year_Mtg_2=1,"Annually",))) -> Monthly
D59: multiplier | F59: =IF(Pmts_Year_Mtg_1=12,13-Month_Placed_in_Svc,IF(Pmts_Year_Mtg_1=1,1,IF(Pmts_Year_Mtg_1=4,IF(Month_Placed_in_Svc>9,1,IF(Month_Placed_in_Svc>6,2,IF(Month_Placed_in_Svc>3,3,4)))))) -> 12 | H59: =IF(Pmts_Year_Mtg_2=12,13-Month_Placed_in_Svc,IF(Pmts_Year_Mtg_2=1,1,IF(Pmts_Year_Mtg_2=4,IF(Month_Placed_in_Svc>9,1,IF(Month_Placed_in_Svc>6,2,IF(Month_Placed_in_Svc>3,3,4)))))) -> 12

Sheet Leases
F1: Lease Analysis
F4: Square | H4: Base | J4: Monthly | L4: Annual | N4: Income | P4: Taxes | R4: Fees | T4: Monthly
B5: Rental Space | D5: Identifier | F5: Feet | H5: Rent | J5: Pass Thru | L5: Income | N5: PSF | P5: Per Unit | R5: Per Unit | T5: Net Rent
B6: scenario 1 | F6: 1974 | H6: 1650 | L6: =IF(H6>0,SUM((H6+J6)*12)," ") -> 19800 | N6: =IF(H6>0,SUM(H6/F6)," ") -> 0.8358662614 | P6: =IF(H6>0,SUM((fnc_rs_taxes/F24)*F6)/12," ") -> 172 | R6: =IF(H6>0,SUM(APOD!J28:'APOD'!J30)/F24*F6/12," ") -> 193 | T6: =IF(H6>0,SUM(H6-P6-R6)," ") -> 1285 | X6: =IF(H6>0,1,"0") -> 1
P7: =IF(H7>0,SUM((fnc_rs_taxes/F24)*F7)/12," ") ->  | R7: =IF(H7>0,SUM(APOD!J28:'APOD'!J30)/F24*F7/12," ") ->  | X7: 0
P8: =IF(H8>0,SUM((fnc_rs_taxes/F24)*F8)/12," ") ->  | R8: =IF(H8>0,SUM(APOD!J28:'APOD'!J30)/F24*F8/12," ") ->  | X8: 0
F9: 0 | H9: 0 | J9: 0 | P9: =IF(H9>0,SUM((fnc_rs_taxes/F24)*F9)/12," ") ->  | R9: =IF(H9>0,SUM(APOD!J28:'APOD'!J30)/F24*F9/12," ") ->  | X9: 0
F10: 0 | H10: 0 | J10: 0 | P10: =IF(H10>0,SUM((fnc_rs_taxes/F24)*F10)/12," ") ->  | R10: =IF(H10>0,SUM(APOD!J28:'APOD'!J30)/F24*F10/12," ") ->  | X10: 0
F11: 0 | H11: 0 | J11: 0 | P11: =IF(H11>0,SUM((fnc_rs_taxes/F24)*F11)/12," ") ->  | R11: =IF(H11>0,SUM(APOD!J28:'APOD'!J30)/F24*F11/12," ") ->  | X11: 0
F12: 0 | H12: 0 | J12: 0 | P12: =IF(H12>0,SUM((fnc_rs_taxes/F24)*F12)/12," ") ->  | R12: =IF(H12>0,SUM(APOD!J28:'APOD'!J30)/F24*F12/12," ") ->  | X12: 0
F13: 0 | H13: 0 | J13: 0 | P13: =IF(H13>0,SUM((fnc_rs_taxes/F24)*F13)/12," ") ->  | R13: =IF(H13>0,SUM(APOD!J28:'APOD'!J30)/F24*F13/12," ") ->  | X13: 0
F14: 0 | H14: 0 | J14: 0 | P14: =IF(H14>0,SUM((fnc_rs_taxes/F24)*F14)/12," ") ->  | R14: =IF(H14>0,SUM(APOD!J28:'APOD'!J30)/F24*F14/12," ") ->  | X14: 0
F15: 0 | H15: 0 | J15: 0 | P15: =IF(H15>0,SUM((fnc_rs_taxes/F24)*F15)/12," ") ->  | R15: =IF(H15>0,SUM(APOD!J28:'APOD'!J30)/F24*F15/12," ") ->  | X15: 0
F16: 0 | H16: 0 | J16: 0 | P16: =IF(H16>0,SUM((fnc_rs_taxes/F24)*F16)/12," ") ->  | R16: =IF(H16>0,SUM(APOD!J28:'APOD'!J30)/F24*F16/12," ") ->  | X16: 0
F17: 0 | H17: 0 | J17: 0 | P17: =IF(H17>0,SUM((fnc_rs_taxes/F24)*F17)/12," ") ->  | R17: =IF(H17>0,SUM(APOD!J28:'APOD'!J30)/F24*F17/12," ") ->  | X17: 0
F18: 0 | H18: 0 | J18: 0 | P18: =IF(H18>0,SUM((fnc_rs_taxes/F24)*F18)/12," ") ->  | R18: =IF(H18>0,SUM(APOD!J28:'APOD'!J30)/F24*F18/12," ") ->  | X18: 0
F19: 0 | H19: 0 | J19: 0 | P19: =IF(H19>0,SUM((fnc_rs_taxes/F24)*F19)/12," ") ->  | R19: =IF(H19>0,SUM(APOD!J28:'APOD'!J30)/F24*F19/12," ") ->  | X19: 0
F20: 0 | H20: 0 | J20: 0 | P20: =IF(H20>0,SUM((fnc_rs_taxes/F24)*F20)/12," ") ->  | R20: =IF(H20>0,SUM(APOD!J28:'APOD'!J30)/F24*F20/12," ") ->  | X20: 0
F21: 0 | H21: 0 | J21: 0 | P21: =IF(H21>0,SUM((fnc_rs_taxes/F24)*F21)/12," ") ->  | R21: =IF(H21>0,SUM(APOD!J28:'APOD'!J30)/F24*F21/12," ") ->  | X21: 0
F22: 0 | H22: 0 | J22: 0 | P22: =IF(H22>0,SUM((fnc_rs_taxes/F24)*F22)/12," ") ->  | R22: =IF(H22>0,SUM(APOD!J28:'APOD'!J30)/F24*F22/12," ") ->  | X22: 0
B24: Total | F24: =SUM(F6:F22) -> 1974 | H24: =SUM(H6:H22) -> 1650 | J24: =SUM(J6:J22) -> 0 | L24: =SUM(L6:L22) -> 19800 | N24: =SUM(N6:N22)/X24 -> 0.8358662614 | P24: =SUM(P6:P22) -> 172 | R24: =SUM(R6:R22) -> 193 | T24: =SUM(T6:T22) -> 1285 | X24: =SUM(X6:X22) -> 1
H27: Real Estate Investment Software CopyR@1997 - 2002
